Workbook

Sheet resumo
A1: EXECUÇÃO DE SERVIÇOS DE IMPLANTAÇÃO DE PAVIMENTAÇÃO EM BLOCO DE CONCRETO INTERTRAVADO, EM VIAS URBANAS E RURAIS DE MUNÍCIPIOS DIVERSOS INSERIDOS NA ÁREA DE ATUAÇÃO DA CODEVASF, NO ESTADO DO AMAPÁ | J1: Extensão (km) | K1: 30 | P1: EXECUÇÃO DE SERVIÇOS DE IMPLANTAÇÃO DE PAVIMENTAÇÃO EM BLOCO DE CONCRETO INTERTRAVADO, EM VIAS URBANAS E RURAIS DE MUNÍCIPIOS DIVERSOS INSERIDOS NA ÁREA DE ATUAÇÃO DA CODEVASF, NO ESTADO DO AMAPÁ | Y1: Extensão (km) | Z1: 2
J2: Largura (m) | K2: 7 | Y2: Largura (m) | Z2: =$K2 -> 7
J3: Bloco Intertravado (m²) | K3: 1 | Y3: Bloco Intertravado (m²) | Z3: 1
J4: Lastro de areia (m) | K4: 0.05 | Y4: Lastro de areia (m) | Z4: 0.05
J5: Rejunte de areia | K5: 0.0004 | Y5: Rejunte de areia | Z5: 0.0004
J6: Base (m) | K6: 0.15 | Y6: Base (m) | Z6: 0.15
J7: Sub-base (m) | K7: 0.15 | Y7: Sub-base (m) | Z7: 0.15
A11: =A1 -> EXECUÇÃO DE SERVIÇOS DE IMPLANTAÇÃO DE PAVIMENTAÇÃO EM BLOCO DE CONCRETO INTERTRAVADO, EM VIAS URBANAS E RURAIS DE MUNÍCIPIOS DIVERSOS INSERIDOS NA ÁREA DE ATUAÇÃO DA CODEVASF, NO ESTADO DO AMAPÁ | P11: =A1 -> EXECUÇÃO DE SERVIÇOS DE IMPLANTAÇÃO DE PAVIMENTAÇÃO EM BLOCO DE CONCRETO INTERTRAVADO, EM VIAS URBANAS E RURAIS DE MUNÍCIPIOS DIVERSOS INSERIDOS NA ÁREA DE ATUAÇÃO DA CODEVASF, NO ESTADO DO AMAPÁ
A12: ITEM | B12: ORIGEM COMPOSIÇÃO | C12: CÓDIGO COMPOSIÇÃO | D12: DISCRIMINAÇÃO DOS SERVIÇOS | I12: BDI %: | J12: ='BDI_Médio Porte'!D24 -> 0.2374 | P12: ITEM | Q12: ORIGEM COMPOSIÇÃO | R12: CÓDIGO COMPOSIÇÃO | S12: DISCRIMINAÇÃO DOS SERVIÇOS | X12: BDI %: | Y12: =J12 -> 0.2374
H13: Encargos Sociais: | J13: Horista | K13: Mensalista | W13: Encargos Sociais: | Y13: Horista | Z13: Mensalista
J14: ='ENC. SOCIAIS'!E51 -> 115.02 | K14: ='ENC. SOCIAIS'!F51 -> 70.88 | Y14: =J14 -> 115.02 | Z14: =K14 -> 70.88
H15: UND | I15: QTDE. | J15: PREÇO UNITÁRIO COM BDI (R$) | K15: TOTAL | W15: UND | X15: QTDE. | Y15: PREÇO UNITÁRIO COM BDI (R$) | Z15: TOTAL
D16: MOBILIZAÇÃO | S16: MOBILIZAÇÃO
A17: 1 | B17: CODEVASF | C17: Composição Própria | D17: Implantação da Obra | H17: km | I17: =K1 -> 30 | J17: 3059.78085 | K17: =I17*J17 -> 91793.4255 | P17: 1 | Q17: CODEVASF | R17: Composição Própria | S17: =D17 -> Implantação da Obra | W17: km | X17: =Z1 -> 2 | Y17: =J17 -> 3059.78085 | Z17: =X17*Y17 -> 6119.5617
A18: 2 | B18: CODEVASF | C18: Composição Própria | D18: Administração da Obra | H18: km | I18: =K1 -> 30 | J18: 10310.27665 | K18: =I18*J18 -> 309308.2996 | P18: 2 | Q18: CODEVASF | R18: Composição Própria | S18: =D18 -> Administração da Obra | W18: km | X18: =Z1 -> 2 | Y18: =J18 -> 10310.27665 | Z18: =X18*Y18 -> 20620.55331
D19: PAVIMENTAÇÃO | L19: m3 | M19: m2 | O19: 0.4 | S19: PAVIMENTAÇÃO
A20: 3 | B20: SINAPI | C20: 92394 | D20: Execução de Pavimento em Piso Intertravado, com Bloco Sextavado de 25 X 25 cm, espessura 8 cm. AF_12/2015 | H20: m² | I20: =K3*K1*1000*K2 -> 210000 | J20: 71.682582 | K20: =I20*J20 -> 15053342.22 | L20: =K1*1000*K2*K3 -> 210000 | M20: =K1*1000*K2 -> 210000 | N20: =L20*$O$19 -> 84000 | O20: =M20*$O$19 -> 84000 | P20: 3 | Q20: SINAPI | R20: 92394 | S20: =D20 -> Execução de Pavimento em Piso Intertravado, com Bloco Sextavado de 25 X 25 cm, espessura 8 cm. AF_12/2015 | W20: t | X20: =Z1*1000*Z2 -> 14000 | Y20: =J20 -> 71.682582 | Z20: =X20*Y20 -> 1003556.148
A21: 4 | B21: SICRO | C21: 2003844 | D21: Lastro de areia comercial - espalhamento mecânico | H21: m³ | I21: =K1*1000*K2*K4 -> 10500 | J21: 86.444764 | K21: =I21*J21 -> 907670.022 | P21: 4 | Q21: SICRO | R21: 2003844 | S21: Lastro de areia comercial - espalhamento mecânico | W21: m² | X21: =Z1*1000*Z2*Z4 -> 700 | Y21: 86.444764 | Z21: 60511.3348
A22: 5 | B22: SICRO | C22: M0081 | D22: Rejunte de areia | H22: m³ | I22: =K1*1000*K2*K5 -> 84 | J22: 83.870972 | K22: 7045.161648 | P22: 5 | Q22: SICRO | R22: M0081 | S22: Rejunte de areia | W22: m² | X22: =Z1*1000*Z2*Z5 -> 5.6 | Y22: 83.870972 | Z22: 469.6774432
A23: 6 | B23: SICRO | C23: 4011276 | D23: Base ou sub-base de brita graduada com brita comercial | H23: m³ | I23: =K1*1000*K2*K6 -> 31500 | J23: 177.31942 | K23: 5585561.73 | L23: =I23*$O$19 -> 12600 | P23: 6 | Q23: SICRO | R23: 4011276 | S23: Base ou sub-base de brita graduada com brita comercial | W23: m³ | X23: =Z1*1000*Z2*Z6 -> 2100 | Y23: 177.31942 | Z23: 372370.782
A24: 7 | B24: SICRO | C24: 4011228 | D24: Sub-base estabilizada granulometricamente com mistura de solos na pista com material de jazida | H24: m³ | I24: =K1*1000*K2*K6 -> 31500 | J24: 9.874452 | K24: 311045.238 | L24: =I24*$O$19 -> 12600 | P24: 7 | Q24: SICRO | R24: 4011228 | S24: Sub-base estabilizada granulometricamente com mistura de solos na pista com material de jazida | W24: m³ | X24: =Z1*1000*Z2*Z6 -> 2100 | Y24: 9.874452 | Z24: 20736.3492
A25: 8 | B25: SICRO | C25: 4011209 | D25: Regularização do subleito | H25: m² | I25: =K1*1000*K2 -> 210000 | J25: 0.92805 | K25: 194890.5 | P25: 8 | Q25: SICRO | R25: 4011209 | S25: Regularização do subleito | W25: m² | X25: =Z1*1000*Z2 -> 14000 | Y25: 0.92805 | Z25: 12992.7
D26: SINALIZAÇÃO | S26: SINALIZAÇÃO
A27: 9 | B27: SICRO | C27: 5213400 | D27: Pintura de faixa - tinta base acrílica - espessura de 0,4 mm | H27: m² | I27: =K1*1000*4*0.1 -> 12000 | J27: 22.990892 | K27: 275890.704 | P27: 9 | Q27: SICRO | R27: 5213400 | S27: =D27 -> Pintura de faixa - tinta base acrílica - espessura de 0,4 mm | W27: m² | X27: =Z1*1000*4*0.1 -> 800 | Y27: =J27 -> 22.990892 | Z27: =X27*Y27 -> 18392.7136
A28: 10 | B28: SICRO | C28: 5213440 | D28: Fornecimento e implantação de placa de regulamentação em aço D = 0,60 m - película retrorrefletiva tipo I + SI | H28: und | I28: =0.5*K1 -> 15 | J28: 189.619176 | K28: 2844.28764 | P28: 10 | Q28: SICRO | R28: 5213440 | S28: Fornecimento e implantação de placa de regulamentação em aço D = 0,60 m - película retrorrefletiva tipo I + SI | W28: und | X28: =0.5*Z1 -> 1 | Y28: =J28 -> 189.619176 | Z28: =X28*Y28 -> 189.619176
A29: 11 | B29: SICRO | C29: 5213851 | D29: Fornecimento e implantação de suporte metálico galvanizado para placa de regulamentação - D = 0,60 m | H29: und | I29: =I28 -> 15 | J29: 249.286604 | K29: 3739.29906 | P29: 11 | Q29: SICRO | R29: 5213851 | S29: Fornecimento e implantação de suporte metálico galvanizado para placa de regulamentação - D = 0,60 m | W29: und | X29: =0.5*Z1 -> 1 | Y29: =J29 -> 249.286604 | Z29: =X29*Y29 -> 249.286604
D30: DRENAGEM | S30: DRENAGEM
A31: 12 | B31: SICRO | C31: 2003325 | D31: Sarjeta triangular de concreto - STC 04 - areia e brita comerciais | H31: m | I31: =K1*1000*2 -> 60000 | J31: 49.174276 | K31: 2950456.56 | L31: 39.74 | P31: 12 | Q31: SICRO | R31: 2003319 | S31: =D31 -> Sarjeta triangular de concreto - STC 04 - areia e brita comerciais | W31: m | X31: =Z1*1000*2 -> 4000 | Y31: =J31 -> 49.174276 | Z31: =X31*Y31 -> 196697.104
A32: 13 | B32: SICRO | C32: 2003375 | D32: Meio fio de concreto - MFC 04 - areia e brita comerciais - fôrma de madeira | H32: m | I32: =K1*1000*2 -> 60000 | J32: 18.424886 | K32: 1105493.16 | L32: 14.89 | P32: 13 | Q32: SICRO | R32: 2003939 | S32: Meio fio de concreto - MFC 04 - areia e brita comerciais - fôrma de madeira | W32: m | X32: =Z1*1000*2 -> 4000 | Y32: =J32 -> 18.424886 | Z32: =X32*Y32 -> 73699.544
D33: SERVIÇOS COMPLEMENTARES | S33: SERVIÇOS COMPLEMENTARES
A34: 14 | B34: SINAPI | C34: 94992 | D34: Calçadas | H34: m² | I34: =K1*1000*2*1 -> 60000 | J34: 80.67848 | K34: 4840708.8 | L34: =I34*O19 -> 24000 | P34: 14 | Q34: SINAPI | R34: 94992 | S34: =D34 -> Calçadas | W34: m² | X34: =Z1*1000*2*1 -> 4000 | Y34: =J34 -> 80.67848 | Z34: =X34*Y34 -> 322713.92
D35: LIMPEZA GERAL | S35: LIMPEZA GERAL
A36: 15 | B36: CODEVASF | C36: Composição Própria | D36: Limpeza Geral | H36: m² | I36: =K1*1000*K2 -> 210000 | J36: =CPU_CBUQ!H66 -> 0.83 | K36: 174300 | P36: 15 | Q36: CODEVASF | R36: Composição Própria | S36: =D36 -> Limpeza Geral | W36: m² | X36: =Z1*1000*Z2 -> 14000 | Y36: =J36 -> 0.83 | Z36: =X36*Y36 -> 11620
D37: PROJETO EXECUTIVO | S37: PROJETO EXECUTIVO
A38: 16 | B38: CODEVASF | C38: Composição Própria | D38: Projeto Executivo | H38: km | I38: =K1 -> 30 | J38: 10101.79483 | K38: 303053.8448 | P38: 16 | Q38: CODEVASF | R38: Composição Própria | S38: =D38 -> Projeto Executivo | W38: km | X38: =Z1 -> 2 | Y38: =J38 -> 10101.79483 | Z38: =X38*Y38 -> 20203.58966
A39: VALOR TOTAL DO SRP | K39: =SUM(K17:K38) -> 32117143.25 | P39: VALOR TOTAL DO SRP | Z39: =SUM(Z17:Z38) -> 2141142.883
K40: =K39/(K1*1000*K2) -> 152.9387774 | Z40: =Z39/(2*Z2*1000) -> 152.9387774

Sheet SERVIÇOS PRELI
A4: ='resumo '!A1 -> EXECUÇÃO DE SERVIÇOS DE IMPLANTAÇÃO DE PAVIMENTAÇÃO EM BLOCO DE CONCRETO INTERTRAVADO, EM VIAS URBANAS E RURAIS DE MUNÍCIPIOS DIVERSOS INSERIDOS NA ÁREA DE ATUAÇÃO DA CODEVASF, NO ESTADO DO AMAPÁ
G5: BDI %: | H5: =#REF! -> 
F6: Encargos Sociais: | H6: Horista | I6: Mensalista
H7: ='ENC. SOCIAIS'!E51/100 -> 1.1502 | I7: ='ENC. SOCIAIS'!F51/100 -> 0.7088
A8: Anexo VI - Planilhas Orçamentárias
A9: PLANILHA ORÇAMENTARIA NÁO DESONERADA -Janeiro/2020
A10: ITEM | B10: CPUs | C10: Fonte | D10: Cód. | E10: DISCRIMINAÇÃO DOS SERVIÇOS | F10: UND | G10: QTDE. | H10: PREÇO UNITÁRIO (R$) | I10: TOTAL
A12: 1 | B12: IMPLANTAÇÃO DA OBRA
A13: 1.1 | B13: SERVIÇOS INICIAIS
A14: 1.1.1 | B14: CPU-01 | C14: CODEVASF | D14: 74209/1 | E14: PLACA DE OBRA EM CHAPA DE ACO GALVANIZADO | F14: und | G14: 1 | H14: 462.66 | I14: =ROUND(G14*H14,2) -> 462.66
A15: 1.1.2 | B15: CPU-02 | C15: CODEVASF | D15: 72840 | E15: MOBILIZAÇÃO E DESMOBILIZAÇÃO | F15: und | G15: 1 | H15: 2010.09 | I15: =ROUND(G15*H15,2) -> 2010.09
A16: 1.1.3 | B16: CPU-02 | C16: CODEVASF | D16: 72840 | E16: DESMOBILIZAÇÃO - TRANSPORTE COMERCIAL COM CAMINHAO CARROCERIA 9 T, RODOVIA PAVIMENTADA | F16: t x km | G16: 0 | H16: =VLOOKUP(B16,CPU_CBUQ!E$1:H$65533,4,0) -> 2010.09 | I16: =ROUND(G16*H16,2) -> 0
F17: ITEM 1: | H17: TOTAL | I17: =SUM(I14:I16) -> 2472.75
A19: 2 | B19: ADMINISTRAÇÃO DA OBRA
A20: 2.1 | B20: CPU-03 | C20: CODEVASF | D20: 2.1 | E20: ADMINISTRAÇÃO LOCAL | F20: % | G20: 1 | H20: 5000.17 | I20: =ROUND(G20*H20,2) -> 5000.17
A21: 2.2 | B21: CPU-04 | C21: CODEVASF | D21: 2.2 | E21: CANTEIRO DE OBRAS E ALMOXARIFADO | F21: MÊS | G21: 12 | H21: 277.67 | I21: =ROUND(G21*H21,2) -> 3332.04
F22: ITEM 2: | H22: TOTAL | I22: =SUM(I20:I21) -> 8332.21
A23: 3 | B23: CALÇADA
A24: 3.1 | C24: SINAPI | D24: 94994 | E24: EXECUÇÃO DE PASSEIO(CALÇADA) OU PISO DE CONCRETO COM CONCRETO MOLDADO IN LOCO, FEITO EM OBRA, ACABAMENTO CONVENCIONAL, e = 6 cm, ARMADO. | F24: M² | G24: =1000*'resumo '!K1*1*2 -> 60000 | H24: 65.2 | I24: =ROUND(G24*H24,2) -> 3912000
F26: ITEM 3: | H26: TOTAL | I26: =I24 -> 3912000

Sheet Grupo II - Projeto Executivo
A4: ='resumo '!A1 -> EXECUÇÃO DE SERVIÇOS DE IMPLANTAÇÃO DE PAVIMENTAÇÃO EM BLOCO DE CONCRETO INTERTRAVADO, EM VIAS URBANAS E RURAIS DE MUNÍCIPIOS DIVERSOS INSERIDOS NA ÁREA DE ATUAÇÃO DA CODEVASF, NO ESTADO DO AMAPÁ
A6: COMPOSIÇÃO DA ELABORAÇÃO DO PROJETO EXECUTIVO
A8: SISTEMA DE REGISTRO DE PREÇO CODEVASF
A9: OBRA: PAVIMENTAÇÃO ASFÁLTICA DE VIAS RURAIS EM MUNICÍPIOS NO ÂMBITO DA ÁREA DE ATUAÇÃO DA CODEVASF, NO ESTADO DO TOCANTINS | J9: LEIS SOCIAIS: | K9: =CPU_CBUQ!H7 -> 0.7088
J10: BDI: | K10: ='BDI_Médio Porte'!D24 -> 0.2374 | L10: %
J11: MÉDIA DE DIAS TRABALHADOS NO MÊS: | K11: 8 | L11: dias
A12: Item | B12: Descrição dos serviços | C12: Unid. | D12: Quant. | F12: SINAPI | G12: R$UNIT | H12: R$PARCIAL | I12: R$TOTAL | J12: PRODUTIVIDADE DIÁRIA: | K12: 3.97 | L12: km
A13: 1.0 | B13: PROJETO EXECUTIVO | I13: =H40 -> 6127.724828
A14: 1.1 | B14: MÃO DE OBRA
A15: A | B15: CAMPO
B16: ENGENHEIRO | C16: h | D16: 8 | F16: 34780 | G16: 98.78 | H16: =ROUND(G16*D16,2) -> 790.24
B17: TOPÓGRAFO | C17: h | D17: 16 | F17: 7592 | G17: 18.16 | H17: =ROUND(G17*D17,2) -> 290.56
B18: AUXILIAR DE TOPÓGRAFO | C18: h | D18: 16 | F18: 88253 | G18: 8.4 | H18: =ROUND(G18*D18,2) -> 134.4
A19: B | B19: GABINETE
B20: ENGENHEIRO | C20: h | D20: 8 | F20: 34780 | G20: 98.78 | H20: =ROUND(G20*D20,2) -> 790.24
B21: CADISTA/CALCULISTA | C21: h | D21: 20 | F21: 2359 | G21: 29.73 | H21: =ROUND(G21*D21,2) -> 594.6
H22: =SUM(H16:H21) -> 2600.04
B23: =CONCATENATE("SUBTOTAL DA MÃO DE OBRA COM LEIS SOCIAIS (",K9,"%):") -> SUBTOTAL DA MÃO DE OBRA COM LEIS SOCIAIS (0,7088%): | H23: =ROUND(K9*(H22),2) -> 1842.91
B24: CUSTO HORÁRIO TOTAL DA MÃO DE OBRA: | H24: =SUM(H22:H23) -> 4442.95
A26: 1.2 | B26: LOCOMOÇÃO - EQUIPE DE CAMPO | C26: Unid. | D26: Quant. | G26: R$UNIT | H26: R$PARCIAL
B27: CAMINHONETE | C27: h | D27: 8 | F27: 92144 | G27: 23.21 | H27: =ROUND(G27*D27,2) -> 185.68
B28: COMBUSTIVEL - DIESEL | C28: l | D28: 2 | F28: 4221 | G28: 3.58 | H28: =G28*D28 -> 7.16
A29: 1.3 | B29: EQUIPAMENTOS
B30: ESTAÇÃO TOTAL CLASSE 2 | C30: h | D30: 16 | F30: 7247 | G30: 2.25 | H30: =G30*D30 -> 36
B31: SUBTOTAL DOS MATERIAIS: | H31: =SUM(H27:H30) -> 228.84
B32: CUSTO TOTAL DA MÃO DE OBRA + EQUIPAMENTOS: | H32: =H24+H31 -> 4671.79
B33: DESPESAS GERAIS E MATERIAIS DE CONSUMO (6,00%) | H33: =H32*0.06 -> 280.3074
B34: CUSTO TOTAL DA MÃO DE OBRA + EQUIPAMENTOS + DESPESAS GERAIS: | H34: =H33+H32 -> 4952.0974
B36: SUBTOTAL MENSAL: | H36: =SUM(H34) -> 4952.0974
B37: =CONCATENATE("SUBTOTAL (DIA-CONSIDERANDO ",K11," DIAS TRABALHADOS):") -> SUBTOTAL (DIA-CONSIDERANDO 8 DIAS TRABALHADOS):
B38: =CONCATENATE("SUBTOTAL LEV. PLANIALTIMÉTRICO (CONSIDERANDO UMA PRODUTIVIDADE DE ",K12," km/DIA)"&"):") -> SUBTOTAL LEV. PLANIALTIMÉTRICO (CONSIDERANDO UMA PRODUTIVIDADE DE 3,97 km/DIA)): | H38: =ROUND(((3970)/K12/1000)*H36,3) -> 4952.097
B39: =CONCATENATE("CUSTO COM BDI (",K10,"%):") -> CUSTO COM BDI (0,2374%): | H39: =H38*K10 -> 1175.627828
B40: CUSTO TOTAL DO LEVANTAMENTO PLANIALTIMÉTRICO: | H40: =H38+H39 -> 6127.724828
A42: 2.0 | B42: ELABORAÇÃO DO ORÇAMENTO, COMPOSIÇÕES UNITÁRIAS DE CUSTO, MEMORIAIS E ESPECIFICAÇÕES | I42: =H62 -> 3974.07
A43: 2.1 | B43: EXPRESSO PELA RELAÇÃO: R = Σ(Qi x P) + DD (1+ A) + CO
A44: 2.2 | B44: QUANTIDADE DE DOCUMENTOS DE CADA TIPO (Qi) | C44: un | D44: 1 | G44: =G45 -> 2927.98 | H44: =ROUND(G44*D44,2) -> 2927.98
A45: 2.3 | B45: PREÇO UNITÁRIO DE CADA TIPO DE DOCUMENTO | C45: un | D45: 1 | G45: =G47+G55 -> 2927.98
B46: P = CD (1 + ES) (1 + DI) (1 + L) (1 + EF) (1 + I)
A47: A | B47: CUSTO DIRETO DE SALÁRIOS (CD) | D47: 1 | G47: =ROUND((D49/D50)*D53,2) -> 1713.47
B48: CD = [(Sm / Nh) x ht]
B49: SALÁRIO BRUTO MENSAL (Sm) | C49: mês | D49: =SUM(G20+G21)*40 -> 5140.4
B50: NÚMERO MÉDIO DE HORAS ÚTEIS POR MÊS (Nh=Nd x J) | C50: h | D50: 24
B51: NÚMERO MÉDIO DE DIAS ÚTEIS POR MÊS DURANTE O ANO (Nd) | C51: dia | D51: =K11 -> 8
B52: JORNADA DIÁRIA DE TRABALHO (J) | C52: h | D52: 8 | K52: =+K52:L52 -> 0
B53: QUANTIDADE DE HORAS TRABALHADAS NO SERVIÇO (ht) | C53: h | D53: 8
A55: B | B55: ENCARGOS SOCIAIS (ES) | C55: % | D55: =K9 -> 0.7088 | G55: =ROUND(G47*D55,2) -> 1214.51
A57: 2.4 | B57: DESPESAS DIRETAS (DD) | C57: % | D57: 3.74 | H57: =ROUND($H$44*D57/100,2) -> 109.51
A58: 2.5 | B58: TAXA DE ADMINISTRAÇÃO (A) | C58: % | D58: 4.75 | H58: =ROUND($H$57*D58/100,2) -> 5.2
A59: 2.6 | B59: CONTIGÊNCIAS | C59: % | D59: 5.77 | H59: =ROUND($H$44*D59/100,2) -> 168.94
B60: CUSTO TOTAL DA ELABORAÇÃO DO PROJETO: | H60: =SUM(H44:H59) -> 3211.63
B61: =CONCATENATE("CUSTO COM BDI (",K10,"%):") -> CUSTO COM BDI (0,2374%): | H61: =ROUND(H60*K10,2) -> 762.44
B62: PREÇO UNITÁRIO TOTAL: | H62: =H60+H61 -> 3974.07
B64: CUSTO TOTAL DA ELABORAÇÃO DO PROJETO EXECUTIVO PARA UM TRECHO | I64: =SUM(I13:I63) -> 10101.79483

Sheet CPU_CBUQ
A4: ='resumo '!A1 -> EXECUÇÃO DE SERVIÇOS DE IMPLANTAÇÃO DE PAVIMENTAÇÃO EM BLOCO DE CONCRETO INTERTRAVADO, EM VIAS URBANAS E RURAIS DE MUNÍCIPIOS DIVERSOS INSERIDOS NA ÁREA DE ATUAÇÃO DA CODEVASF, NO ESTADO DO AMAPÁ
F5: BDI %: | G5: =#REF! -> 
E6: Encargos Sociais: | G6: Horista | H6: Mensalista
G7: ='ENC. SOCIAIS'!E51/100 -> 1.1502 | H7: ='ENC. SOCIAIS'!F51/100 -> 0.7088
A8: COMPOSIÇÕES DE CUSTO UNITARIO
A9: CPU-01 | B9: CODEVASF | C9: 74209/1 | D9: PLACA DE OBRA EM CHAPA DE ACO GALVANIZADO | E9: M2 | F9: COEF. | G9: PRECO UNITÁRIO (R$) | H9: TOTAL (R$)
A11: INS. SINAPI | B11: SINAPI | C11: 5075 | D11: Prego 18x30. | E11: kg | F11: 0.11 | G11: 11.19 | H11: =ROUND(F11*G11,2) -> 1.23
A12: INS. SINAPI | B12: SINAPI | C12: 4491 | D12: Peca de madeira nativa / regional 7,5 x 7,5cm (3x3) nao aparelhada (p/forma) | E12: m | F12: 4 | G12: 5.13 | H12: 20.52
A13: INS. SINAPI | B13: SINAPI | C13: 4417 | D13: Peca de madeira de lei *2,5 x 7,5* cm (1" x 3"), não aparelhada, (p/telhado) | E13: m | F13: 1 | G13: 4.21 | H13: 4.21
A14: INS. SINAPI | B14: SINAPI | C14: 4813 | D14: Placa de obra (para construcao civil) em chapa galvanizada *nº 22*, de *2,0 x 1,125* m | E14: m² | F14: 1 | G14: 300 | H14: 300
A15: INS. SINAPI | B15: SINAPI | C15: 370 | D15: Areia Média | E15: m³ | F15: 0.0049 | G15: 107.5 | H15: 0.53
A16: INS. SINAPI | B16: SINAPI | C16: 1379 | D16: Cimento | E16: kg | F16: 1.5 | G16: 0.75 | H16: 1.13
A17: INS. SINAPI | B17: SINAPI | C17: 4718 | D17: Pedra Britada nº 2 | E17: m³ | F17: 0.0098 | G17: 53.29 | H17: 0.52
A18: COMP. SINAPI | B18: SINAPI | C18: 87445 | D18: Betoneira 320 l, diesel, potencia de 5,5 hp, sem carregador mecanico (locacao) | E18: h | F18: 0.0065 | G18: 3.17 | H18: =ROUND(F18*G18,2) -> 0.02
A19: COMP. SINAPI | B19: SINAPI | C19: 88262 | D19: CARPINTEIRO DE FORMAS COM ENCARGOS COMPLEMENTARES | E19: h | F19: 1 | G19: 18.14 | H19: =ROUND(F19*G19,2) -> 18.14
A20: COMP. SINAPI | B20: SINAPI | C20: 88316 | D20: SERVENTE COM ENCARGOS COMPLEMENTARES | E20: h | F20: 2.06 | G20: 13.4 | H20: =ROUND(F20*G20,2) -> 27.6
E21: Sub total: | H21: =SUM(H11:H20) -> 373.9
F22: BDI | G22: ='BDI_Médio Porte'!D24 -> 0.2374 | H22: =ROUND(H21*G22,2) -> 88.76
G23: Total Serviços: | H23: =H21+H22 -> 462.66
E24: =A9 -> CPU-01 | F24: PREÇO UNITÁRIO TOTAL: | H24: =H23 -> 462.66
A26: CPU-02 | B26: CODEVASF | C26: Propria | D26: MOBILIZAÇÃO E DESMOBILIZAÇÃO | E26: T X KM | F26: COEF. | G26: PRECO UNITÁRIO (R$) | H26: TOTAL (R$)
A28: COMP. SINAPI | B28: SINAPI | C28: 73340 | D28: CAMINHÃO TOCO, PBT 14.300 KG, CARGA ÚTIL MÁX. 9.710 KG, DIST. ENTRE EIXOS 3,56 M, POTÊNCIA 185 CV, INCLUSIVE CARROCERIA FIXA ABERTA DE MADEIRA P/ TR ANSPORTE GERAL DE CARGA SECA, DIMEN. APROX. 2,50 X 6,50 X 0,50 M - MATERIA IS NA OPERAÇÃO. AF_06/2014 | E28: H | F28: 2 | G28: 48.75 | H28: =ROUND(F28*G28,2) -> 97.5
A29: COMP. SINAPI | B29: SINAPI | C29: 67826 | D29: CAMINHÃO BASCULANTE 6 M3 TOCO, PESO BRUTO TOTAL 16.000 KG, CARGA ÚTIL MÁXI CHP MA 11.130 KG, DISTÂNCIA ENTRE EIXOS 5,36 M, POTÊNCIA 185 CV, INCLUSIVE CAÇAMBA METÁLICA - CHP DIURNO. AF_06/2014 | E29: CHP | F29: 2 | G29: 102.54 | H29: =ROUND(F29*G29,2) -> 205.08
A30: COMP. SINAPI | B30: SINAPI | C30: 6259 | D30: CAMINHÃO PIPA 6.000 L, PESO BRUTO TOTAL 13.000 KG, DISTÂNCIA ENTRE EIXOS 4 CHP ,80 M, POTÊNCIA 189 CV INCLUSIVE TANQUE DE AÇO PARA TRANSPORTE DE ÁGUA, CAPACIDADE 6 M3 - CHP DIURNO. AF_06/2014 | E30: CHP | F30: 2 | G30: 148.44 | H30: =ROUND(F30*G30,2) -> 296.88
A31: EQUIP.ORSE | B31: ORSE | C31: 2745 | D31: Transporte de máquinas e equipamentos por prancha rebaixada (min.=100km) | E31: km | F31: 500 | G31: 2 | H31: =ROUND(F31*G31,2) -> 1000
A32: INSUMO | B32: ORSE | C32: 5896 | D32: Veículo tipo sedan ou pick-up capacidade 0,6 ton | E32: h | F32: 3 | G32: 8.33 | H32: =ROUND(F32*G32,2) -> 24.99
E33: Sub total: | H33: =SUM(H28:H32) -> 1624.45
F34: BDI | G34: ='BDI_Médio Porte'!D24 -> 0.2374 | H34: =ROUND(H33*G34,2) -> 385.64
G35: Total Serviços: | H35: =H33+H34 -> 2010.09
E36: =A26 -> CPU-02 | F36: PREÇO UNITÁRIO TOTAL: | H36: =H35 -> 2010.09
A38: CPU-03 | B38: CODEVASF | D38: ADMINISTRAÇÃO LOCAL | E38: % | F38: COEF. | G38: PRECO UNITÁRIO (R$) | H38: TOTAL (R$)
A40: COMP. SINAPI | B40: SINAPI | C40: 90777 | D40: ENGENHEIRO CIVIL DE OBRA JUNIOR COM ENCARGOS COMPLEMENTARES | E40: H | F40: 20 | G40: 88.12 | H40: =ROUND(F40*G40,2) -> 1762.4
A41: COMP. SINAPI | B41: SINAPI | C41: 90780 | D41: MESTRE DE OBRAS COM ENCARGOS COMPLEMENTARES | E41: H | F41: 40 | G41: 29.35 | H41: 1174
A42: COMP. SINAPI | B42: SINAPI | C42: 90772 | D42: AUXILIAR DE ESCRITORIO COM ENCARGOS COMPLEMENTARES | E42: H | F42: 40 | G42: 15.72 | H42: 628.8
A43: INS. SINAPI | B43: SINAPI | C43: 14250 | D43: ENERGIA | E43: KW/H | F43: 100 | G43: 0.67 | H43: 67
A44: INS. SINAPI | B44: SINAPI | C44: 14583 | D44: ÁGUA TARIFA "A" ENTRE 0 E 20M3 FORNECIMENTO D'AGUA | E44: M3 | F44: 1 | G44: 12.67 | H44: 12.67
A45: INSUMO | B45: ORSE | C45: 4415 | D45: Veículo leve - Volkswagen:GOL 1000 - automóvel até 100 hp | E45: H | F45: 40 | G45: 9.9 | H45: 396
E46: ADM. LOCAL : | H46: =SUM(H40:H45) -> 4040.87
E47: Total para 6 meses:
E48: ='BDI_Médio Porte'!D24 -> 0.2374 | H48: =ROUND(E48*H46,2) -> 959.3
E49: =A38 -> CPU-03 | F49: PREÇO TOTAL: | H49: =H46+H48 -> 5000.17
A51: CPU-04 | B51: CODEVASF | D51: CANTEIRO DE OBRAS E ALMOXARIFADO | E51: MÊS | F51: COEF. | G51: PRECO UNITÁRIO (R$) | H51: TOTAL (R$)
A53: INS. SINAPI | B53: SINAPI | C53: 10775 | D53: Locação de container - Escritório com banheiro - 6,20 x 2,20m | E53: mês | F53: 0.2 | G53: 522 | H53: =ROUND(F53*G53,2) -> 104.4
A54: COMP. ORSE | B54: ORSE | C54: 4299 | D54: Aluguel de container - Almoxarifado sem banheiro - 6,00 x 2,40m | E54: mês | F54: 0.2 | G54: 600 | H54: =ROUND(F54*G54,2) -> 120
E55: Sub total: | H55: =SUM(H53:H54) -> 224.4
F56: BDI | G56: ='BDI_Médio Porte'!D24 -> 0.2374 | H56: =ROUND(H55*G56,2) -> 53.27
G57: Total Serviços: | H57: =H55+H56 -> 277.67
E58: =A51 -> CPU-04 | F58: PREÇO UNITÁRIO TOTAL: | H58: =H57 -> 277.67
A60: CPU-11 | B60: CODEVASF | D60: LIMPEZA GERAL | E60: UNID | F60: COEF. | G60: PRECO UNITÁRIO (R$) | H60: TOTAL (R$)
A62: COMP. SINAPI | B62: SINAPI | C62: 88316 | D62: SERVENTE COM ENCARGOS COMPLEMENTARES | E62: H | F62: 0.05 | G62: 13.4 | H62: =ROUND(F62*G62,2) -> 0.67
E63: Sub total: | H63: =SUM(H62:H62) -> 0.67
F64: BDI | G64: ='BDI_Médio Porte'!D24 -> 0.2374 | H64: =ROUND(H63*G64,2) -> 0.16
G65: Total Serviços: | H65: =H63+H64 -> 0.83
E66: =A60 -> CPU-11 | F66: PREÇO UNITÁRIO TOTAL: | H66: =H65 -> 0.83

Sheet BDI_Médio Porte
A2: OBRA:
A3: LOCAL:
A4: DATA BASE:
A5: DETALHAMENTO DO BDI
A6: Serviços
A7: Atualização em 2013.
A9: Item | B9: Descrição dos serviços | C9: Preço de Venda (%) | D9: Custo Direto (%)
A11: 1 | B11: Administração Central (A) | D11: 0.0465
A13: 2 | B13: Impostos e Taxas (I) | C13: 0.0615
A14: 2.1 | B14: ISS | C14: 0.025
A15: 2.2 | B15: PIS | C15: 0.0065
A16: 2.3 | B16: Cofins | C16: 0.03
A18: 3 | B18: Risco, seguro e garantia (R) | D18: 0.0171
A20: 4 | B20: Despesas Financeiras (AP) | D20: 0.011
A22: 5 | B22: Lucro (L) | D22: 0.08
B24: BDI* (%) | D24: =ROUND(((((1+D11+D18)*(1+D20)*(1+D22))/(1-C13))-1),4) -> 0.2374
A26: Considerações:
A27: Acórdão Nº 2622/2013 – TCU – Plenário
A28: (*) BDI (%) = ((((1+AC+R)*(1+DF)*(1+L))/(1-I))-1) | B28: Médio, em área e prazo em condições normais de execução
A29: Tipo da Obra: | B29: 50% de X% (valor da tabela Prefeitura de XXX)
A30: ISS municipal:

Sheet ENC. SOCIAIS
A6: NOME DA CONCORRENTE:
A7: EDITAL:
A8: FOLHA:
A9: ='resumo '!A1 -> EXECUÇÃO DE SERVIÇOS DE IMPLANTAÇÃO DE PAVIMENTAÇÃO EM BLOCO DE CONCRETO INTERTRAVADO, EM VIAS URBANAS E RURAIS DE MUNÍCIPIOS DIVERSOS INSERIDOS NA ÁREA DE ATUAÇÃO DA CODEVASF, NO ESTADO DO AMAPÁ
A11: DETALHAMENTO DOS ENCARGOS SOCIAIS (%)
A12: VIGÊNCIA A PARTIR DE 01/2020 | C12: COM DESONERAÇÃO | E12: SEM DESONERAÇÃO
C14: HORISTA | D14: MENSALISTA | E14: HORISTA | F14: MENSALISTA
A16: GRUPO A
A17: A1 | B17: INSS | C17: 0 | D17: 0 | E17: 20 | F17: 20
A18: A2 | B18: SESI | C18: 1.5 | D18: 1.5 | E18: 1.5 | F18: 1.5
A19: A3 | B19: SENAI | C19: 1 | D19: 1 | E19: 1 | F19: 1
A20: A4 | B20: INCRA | C20: 0.2 | D20: 0.2 | E20: 0.2 | F20: 0.2
A21: A5 | B21: SEBRAE | C21: 0.6 | D21: 0.6 | E21: 0.6 | F21: 0.6
A22: A6 | B22: Salário Educação | C22: 2.5 | D22: 2.5 | E22: 2.5 | F22: 2.5
A23: A7 | B23: Seguro Contra Acidentes de Trabalho | C23: 3 | D23: 3 | E23: 3 | F23: 3
A24: A8 | B24: FGTS | C24: 8 | D24: 8 | E24: 8 | F24: 8
A25: A9 | B25: SECONCI | C25: 1 | D25: 1 | E25: 0 | F25: 0
A26: A | B26: Total | C26: =SUM(C17:C25) -> 17.8 | D26: =SUM(D17:D25) -> 17.8 | E26: =SUM(E17:E25) -> 36.8 | F26: =SUM(F17:F25) -> 36.8
A27: GRUPO B
A28: B1 | B28: Repouso Semanal Remunerado | C28: 17.88 | D28: - | E28: 18.1 | F28: -
A29: B2 | B29: Feriados | C29: 3.94 | D29: - | E29: 4.83 | F29: -
A30: B3 | B30: Auxílio-enfermidade | C30: 0.91 | D30: 0.69 | E30: 0.9 | F30: 0.69
A31: B4 | B31: 13° salário | C31: 10.98 | D31: 8.33 | E31: 10.81 | F31: 8.33
A32: B5 | B32: Licença-paternidade | C32: 0.07 | D32: 0.06 | E32: 0.07 | F32: 0.06
A33: B6 | B33: Faltas Justificadas | C33: 0.73 | D33: 0.56 | E33: 0.72 | F33: 0.56
A34: B7 | B34: Dias de chuva | C34: 1.45 | D34: - | E34: 1.95 | F34: 0
A35: B8 | B35: Auxílio Acidente de Trabalho | C35: 0.11 | D35: 0.09 | E35: 0.11 | F35: 0.09
A36: B9 | B36: Férias Gozadas | C36: 11.35 | D36: 8.62 | E36: 13.2 | F36: 10.17
A37: B10 | B37: Salário Maternidade | C37: 0.03 | D37: 0.03 | E37: 0.03 | F37: 0.03
A38: B | B38: Total | C38: =SUM(C28:C37) -> 47.45 | D38: =SUM(D28:D37) -> 18.38 | E38: =SUM(E28:E37) -> 50.72 | F38: =SUM(F28:F37) -> 19.93
A39: GRUPO C
A40: C1 | B40: Aviso Prévio Indenizado | C40: 6.76 | D40: 5.14 | E40: 3.72 | F40: 2.87
A41: C2 | B41: Aviso Prévio Trabalhado | C41: 0.16 | D41: 0.12 | E41: 0.09 | F41: 0.07
A42: C3 | B42: Férias Indenizadas | C42: 2.28 | D42: 1.73 | E42: 0.84 | F42: 0.64
A43: C4 | B43: Depósito Rescisão Sem Justa Causa | C43: 3.81 | D43: 2.89 | E43: 3.55 | F43: 2.74
A44: C5 | B44: Indenização Adicional | C44: 0.57 | D44: 0.43 | E44: 0.31 | F44: 0.24
A45: C | B45: Total | C45: =SUM(C40:C44) -> 13.58 | D45: =SUM(D40:D44) -> 10.31 | E45: =SUM(E40:E44) -> 8.51 | F45: =SUM(F40:F44) -> 6.56
A46: GRUPO D
A47: D1 | B47: Reincidência de A sobre B | C47: 8.45 | D47: 3.27 | E47: 18.66 | F47: 7.33
A48: D2 | B48: Reincidência de Grupo A sobre Aviso Prévio Trabalhado e Reincidência do FGTS sobre Aviso Prévio Indenizado | C48: 0.57 | D48: 0.43 | E48: 0.33 | F48: 0.26
A49: D | B49: Total | C49: =SUM(C47:C48) -> 9.02 | D49: =SUM(D47:D48) -> 3.7 | E49: =SUM(E47:E48) -> 18.99 | F49: =SUM(F47:F48) -> 7.59
A51: T O T A L (%) | C51: =C26+C38+C45+C49 -> 87.85 | D51: =D26+D38+D45+D49 -> 50.19 | E51: =E26+E38+E45+E49 -> 115.02 | F51: =F26+F38+F45+F49 -> 70.88

Sheet Mob e Desmob
A5: ='resumo '!A1 -> EXECUÇÃO DE SERVIÇOS DE IMPLANTAÇÃO DE PAVIMENTAÇÃO EM BLOCO DE CONCRETO INTERTRAVADO, EM VIAS URBANAS E RURAIS DE MUNÍCIPIOS DIVERSOS INSERIDOS NA ÁREA DE ATUAÇÃO DA CODEVASF, NO ESTADO DO AMAPÁ
A7: MEMÓRIA DE CÁLCULO DOS MOMENTOS DE TRANSPORTE PARA MOBILIZAÇÃO E DESMOBILIZAÇÃO
A10: Deslocamento:
C11: Distancia méd. (Km) | D11: Qtde. | E11: Total (Km)
A12: Mobilização (entre os trechos de serviço): | C12: 1 | D12: 1 | E12: =C12*D12 -> 1
A13: Desmobilização (entre os trechos de serviço): | C13: 1 | D13: 1 | E13: =C13*D13 -> 1
A14: Mobilização inter-municipal (entre as localidades): | C14: 50 | D14: 1 | E14: =C14*D14 -> 50
A15: Desmobilização inter-municipal (entre as localidades): | C15: 50 | D15: 1 | E15: =C15*D15 -> 50
A16: Mobilização - Total (km) | E16: =E12+E14 -> 51
A17: Desmobilização - Total (km) | E17: =E13+E15 -> 51
A20: Peso das máquinas:
E21: Trator de esteiras | H21: 10.15 | I21: ton
E22: Pá carregadeira | H22: 10.1 | I22: ton
E23: Motoniveladora | H23: 12.47 | I23: ton
E24: Trator de pneus | H24: 2.8 | I24: ton
E25: Rolo Compactador | H25: 15.33 | I25: ton
E26: Grade de disco | H26: 1 | I26: ton
E28: Total | H28: =ROUND(SUM(H20:H27),2) -> 51.85 | I28: ton
A30: Portanto: | B30: Portanto
A31: Mobilização - Total (km) | E31: =E16*H28 -> 2644.35 | F31: t x km
A32: Desmobilização - Total (km) | E32: =E17*H28 -> 2644.35 | F32: t x km
